[Event "*** SCC Grand Prix: Titled Tuesday Blitz"]
[Site "Chess.com"]
[Date "2020.09.08"]
[Round "7"]
[White "ChelsieMonica"]
[Black "Carnivoras"]
[Result "0-1"]
[WhiteElo "2426"]
[BlackElo "2639"]
[TimeControl "180+1"]
[EndTime "11:16:58 PDT"]
[Termination "Carnivoras won by resignation"]

1. c4 {[%clk 0:03:00.9]} 1... e6 {[%clk 0:02:59.4]} 2. Nf3 {[%clk 0:03:00.3]}
2... d5 {[%clk 0:02:59.8]} 3. cxd5 {[%clk 0:03:01]} 3... exd5 {[%clk 0:02:59.2]}
4. g3 {[%clk 0:03:01.2]} 4... Nf6 {[%clk 0:02:59.6]} 5. Bg2 {[%clk 0:03:01.5]}
5... Bd6 {[%clk 0:02:59.5]} 6. O-O {[%clk 0:03:02.4]} 6... O-O {[%clk
0:02:59.9]} 7. b3 {[%clk 0:03:02.5]} 7... Bf5 {[%clk 0:02:59.2]} 8. Bb2 {[%clk
0:03:02.6]} 8... Nbd7 {[%clk 0:02:57.8]} 9. d3 {[%clk 0:03:02.9]} 9... c6 {[%clk
0:02:58.1]} 10. Nbd2 {[%clk 0:03:03]} 10... Re8 {[%clk 0:02:58.6]} 11. Nh4
{[%clk 0:03:02.5]} 11... Bg4 {[%clk 0:02:58.5]} 12. Re1 {[%clk 0:03:01.1]} 12...
a5 {[%clk 0:02:54.5]} 13. h3 {[%clk 0:02:58.6]} 13... Bh5 {[%clk 0:02:53.6]} 14.
Nf5 {[%clk 0:02:58.8]} 14... Bf8 {[%clk 0:02:52.7]} 15. g4 {[%clk 0:02:58.3]}
15... Bg6 {[%clk 0:02:52.3]} 16. e4 {[%clk 0:02:58]} 16... Ne5 {[%clk 0:02:52]}
17. d4 {[%clk 0:02:51.5]} 17... Nd3 {[%clk 0:02:51.1]} 18. Qc2 {[%clk
0:02:46.3]} 18... Nxe1 {[%clk 0:02:39.8]} 19. Rxe1 {[%clk 0:02:45.4]} 19... dxe4
{[%clk 0:02:38.7]} 20. Nxe4 {[%clk 0:02:45.3]} 20... Nxe4 {[%clk 0:02:38.7]} 21.
Rxe4 {[%clk 0:02:43.8]} 21... Bxf5 {[%clk 0:02:34.8]} 22. gxf5 {[%clk
0:02:41.1]} 22... Rxe4 {[%clk 0:02:29.6]} 23. Qxe4 {[%clk 0:02:42]} 23... Be7
{[%clk 0:02:23.5]} 24. Bc1 {[%clk 0:02:39.4]} 24... Bf6 {[%clk 0:02:22.1]} 25.
Be3 {[%clk 0:02:39.5]} 25... Qe7 {[%clk 0:02:21.5]} 26. Qg4 {[%clk 0:02:38.3]}
26... Rd8 {[%clk 0:02:16.9]} 27. Bf1 {[%clk 0:02:36.6]} 27... Qb4 {[%clk
0:02:10]} 28. Bc4 {[%clk 0:02:18.3]} 28... b5 {[%clk 0:01:59.9]} 29. Bf1 {[%clk
0:02:17.8]} 29... Bxd4 {[%clk 0:01:52.4]} 30. a3 {[%clk 0:01:57.5]} 30... Qd6
{[%clk 0:01:23.1]} 31. Bf4 {[%clk 0:01:47.6]} 31... Be5 {[%clk 0:01:18.5]} 32.
f6 {[%clk 0:01:47.2]} 32... g6 {[%clk 0:01:09.5]} 33. Be3 {[%clk 0:01:37.8]}
33... Bxf6 {[%clk 0:01:06.6]} 34. h4 {[%clk 0:01:37.7]} 34... Qe6 {[%clk
0:01:05.4]} 35. Qg3 {[%clk 0:01:37.2]} 35... Qxb3 {[%clk 0:01:02.8]} 36. h5
{[%clk 0:01:37.2]} 36... Qxa3 {[%clk 0:00:59.1]} 37. hxg6 {[%clk 0:01:36.8]}
37... hxg6 {[%clk 0:00:58.1]} 38. Qc7 {[%clk 0:01:36.3]} 38... Qd6 {[%clk
0:00:54.6]} 39. Qxa5 {[%clk 0:01:34.6]} 39... Bd4 {[%clk 0:00:54.5]} 0-1

[Event "*** SCC Grand Prix: Titled Tuesday Blitz"]
[Site "Chess.com"]
[Date "2020.09.08"]
[Round "7"]
[White "IANOV0007"]
[Black "Barcelona_Guy"]
[Result "0-1"]
[WhiteElo "2420"]
[BlackElo "2637"]
[TimeControl "180+1"]
[EndTime "11:17:00 PDT"]
[Termination "Barcelona_Guy won by resignation"]

1. Nf3 {[%clk 0:03:00.9]} 1... Nf6 {[%clk 0:02:59.9]} 2. g3 {[%clk 0:03:00.8]}
2... g6 {[%clk 0:03:00.2]} 3. b3 {[%clk 0:02:59.5]} 3... Bg7 {[%clk 0:03:00.5]}
4. Bb2 {[%clk 0:02:59.5]} 4... O-O {[%clk 0:03:01.1]} 5. Bg2 {[%clk 0:02:59.4]}
5... d6 {[%clk 0:02:57.2]} 6. d4 {[%clk 0:02:57.9]} 6... c6 {[%clk 0:02:56.3]}
7. O-O {[%clk 0:02:56.9]} 7... Nbd7 {[%clk 0:02:57]} 8. c4 {[%clk 0:02:53.5]}
8... Qa5 {[%clk 0:02:57.5]} 9. h3 {[%clk 0:02:50.6]} 9... e5 {[%clk 0:02:54.6]}
10. Nc3 {[%clk 0:02:46]} 10... e4 {[%clk 0:02:45.5]} 11. Ne1 {[%clk 0:02:43.9]}
11... d5 {[%clk 0:02:46]} 12. Nc2 {[%clk 0:02:39.6]} 12... Re8 {[%clk
0:02:38.2]} 13. Ne3 {[%clk 0:02:39]} 13... Nf8 {[%clk 0:02:31.4]} 14. cxd5
{[%clk 0:02:37]} 14... cxd5 {[%clk 0:02:31]} 15. a3 {[%clk 0:02:36.5]} 15... Be6
{[%clk 0:02:23.5]} 16. b4 {[%clk 0:02:36.1]} 16... Qd8 {[%clk 0:02:22.1]} 17.
Rc1 {[%clk 0:02:32.3]} 17... h5 {[%clk 0:02:18.7]} 18. Na4 {[%clk 0:02:29.8]}
18... b6 {[%clk 0:02:17.8]} 19. Nc3 {[%clk 0:02:26.4]} 19... N8h7 {[%clk
0:02:16.7]} 20. Nb5 {[%clk 0:02:18.7]} 20... Re7 {[%clk 0:02:14.8]} 21. Qa4
{[%clk 0:02:10.5]} 21... a6 {[%clk 0:02:04.7]} 22. Nc3 {[%clk 0:02:09.2]} 22...
b5 {[%clk 0:02:03.5]} 23. Qb3 {[%clk 0:02:04.6]} 23... Qd7 {[%clk 0:02:03.7]}
24. Kh2 {[%clk 0:02:00.6]} 24... Bh6 {[%clk 0:01:58]} 25. Ncd1 {[%clk
0:01:58.1]} 25... h4 {[%clk 0:01:54.7]} 26. Rc5 {[%clk 0:01:50.8]} 26... hxg3+
{[%clk 0:01:50.4]} 27. fxg3 {[%clk 0:01:49.5]} 27... Rd8 {[%clk 0:01:46.3]} 28.
Bc1 {[%clk 0:01:47.1]} 28... Bf8 {[%clk 0:01:42.6]} 29. Bd2 {[%clk 0:01:42.4]}
29... Ree8 {[%clk 0:01:41.8]} 30. Nf2 {[%clk 0:01:38.4]} 30... Bd6 {[%clk
0:01:36.6]} 31. Nh1 {[%clk 0:01:30.1]} 31... Kg7 {[%clk 0:01:30.6]} 32. Qc2
{[%clk 0:01:25.9]} 32... Rh8 {[%clk 0:01:26]} 33. Rc6 {[%clk 0:01:17.8]} 33...
Ng5 {[%clk 0:01:19.6]} 34. h4 {[%clk 0:01:16]} 34... Rxh4+ {[%clk 0:01:18.3]}
35. Kg1 {[%clk 0:01:15.6]} 35... Nh3+ {[%clk 0:01:15.3]} 36. Bxh3 {[%clk
0:01:13.7]} 36... Rxh3 {[%clk 0:01:15.6]} 37. Kf2 {[%clk 0:01:04.1]} 37... Rdh8
{[%clk 0:01:13.3]} 0-1

[Event "*** SCC Grand Prix: Titled Tuesday Blitz"]
[Site "Chess.com"]
[Date "2020.09.08"]
[Round "7"]
[White "eightbyeightchess"]
[Black "diamonds13"]
[Result "1-0"]
[WhiteElo "2434"]
[BlackElo "2285"]
[TimeControl "180+1"]
[EndTime "11:17:00 PDT"]
[Termination "eightbyeightchess won by resignation"]

1. e4 {[%clk 0:03:00.9]} 1... c5 {[%clk 0:02:59.8]} 2. Nf3 {[%clk 0:02:52.9]}
2... Nc6 {[%clk 0:02:59.5]} 3. d4 {[%clk 0:02:49.2]} 3... cxd4 {[%clk
0:02:59.6]} 4. Nxd4 {[%clk 0:02:50.1]} 4... e5 {[%clk 0:02:59.1]} 5. Nb3 {[%clk
0:02:44.5]} 5... d6 {[%clk 0:02:56.5]} 6. Nc3 {[%clk 0:02:44.2]} 6... f5 {[%clk
0:02:56.2]} 7. exf5 {[%clk 0:02:40.3]} 7... Bxf5 {[%clk 0:02:55.9]} 8. Bc4
{[%clk 0:02:40.5]} 8... Nf6 {[%clk 0:02:55.6]} 9. O-O {[%clk 0:02:39.5]} 9...
Be7 {[%clk 0:02:55.5]} 10. Bg5 {[%clk 0:02:39]} 10... Qd7 {[%clk 0:02:52.3]} 11.
Bxf6 {[%clk 0:02:23.8]} 11... gxf6 {[%clk 0:02:50.6]} 12. Nd5 {[%clk 0:02:24.7]}
12... h5 {[%clk 0:02:42.3]} 13. Qe2 {[%clk 0:02:13.1]} 13... Bg4 {[%clk
0:02:39.5]} 14. f3 {[%clk 0:02:11]} 14... Be6 {[%clk 0:02:39.4]} 15. Rad1 {[%clk
0:02:10.7]} 15... h4 {[%clk 0:02:36.5]} 16. h3 {[%clk 0:01:36.4]} 16... O-O-O
{[%clk 0:02:35.3]} 17. a4 {[%clk 0:01:20.6]} 17... Rdg8 {[%clk 0:02:29.9]} 18.
Nc5 {[%clk 0:01:11]} 18... dxc5 {[%clk 0:02:25]} 19. Nb6+ {[%clk 0:01:10.4]}
19... axb6 {[%clk 0:02:19.6]} 20. Rxd7 {[%clk 0:01:11.3]} 20... Bxd7 {[%clk
0:02:17.6]} 21. Bxg8 {[%clk 0:01:10.7]} 21... Rxg8 {[%clk 0:02:15.8]} 22. Kh1
{[%clk 0:01:06.4]} 22... Nd4 {[%clk 0:02:15.6]} 23. Qe4 {[%clk 0:01:02.4]} 23...
Nf5 {[%clk 0:02:10.3]} 24. Qc4 {[%clk 0:00:58]} 24... Ng3+ {[%clk 0:02:07]} 25.
Kg1 {[%clk 0:00:58.1]} 25... Rg7 {[%clk 0:02:02.7]} 26. Rd1 {[%clk 0:00:53.9]}
26... Bc6 {[%clk 0:01:52]} 27. Qxh4 {[%clk 0:00:50.3]} 27... Nf5 {[%clk
0:01:37.8]} 28. Qh8+ {[%clk 0:00:49.9]} 28... Kc7 {[%clk 0:01:37.9]} 29. Kf2
{[%clk 0:00:45.2]} 29... c4 {[%clk 0:01:37.2]} 30. g4 {[%clk 0:00:41]} 30...
Bc5+ {[%clk 0:01:37]} 31. Ke1 {[%clk 0:00:40.5]} 31... Bxf3 {[%clk 0:01:33.7]}
32. Qd8+ {[%clk 0:00:33]} 32... Kc6 {[%clk 0:01:33.4]} 33. Qc8+ {[%clk
0:00:29.8]} 33... Rc7 {[%clk 0:01:32.2]} 34. Qe8+ {[%clk 0:00:29.9]} 1-0

[Event "*** SCC Grand Prix: Titled Tuesday Blitz"]
[Site "Chess.com"]
[Date "2020.09.08"]
[Round "7"]
[White "Wilver92"]
[Black "glebus008"]
[Result "1-0"]
[WhiteElo "2401"]
[BlackElo "2161"]
[TimeControl "180+1"]
[EndTime "11:17:01 PDT"]
[Termination "Wilver92 won by checkmate"]

1. e4 {[%clk 0:03:00.7]} 1... d5 {[%clk 0:02:57.4]} 2. exd5 {[%clk 0:03:00.4]}
2... Nf6 {[%clk 0:02:55.2]} 3. Bb5+ {[%clk 0:02:55.5]} 3... Nbd7 {[%clk
0:02:52.3]} 4. c4 {[%clk 0:02:55.1]} 4... a6 {[%clk 0:02:24.1]} 5. Ba4 {[%clk
0:02:54.4]} 5... b5 {[%clk 0:02:12.3]} 6. cxb5 {[%clk 0:02:53.5]} 6... Nb6
{[%clk 0:01:55.2]} 7. bxa6+ {[%clk 0:02:52.4]} 7... Nxa4 {[%clk 0:01:51.2]} 8.
Qxa4+ {[%clk 0:02:53.1]} 8... Bd7 {[%clk 0:01:50.1]} 9. Qc4 {[%clk 0:02:50.9]}
9... g6 {[%clk 0:01:17.4]} 10. Nc3 {[%clk 0:02:49.3]} 10... Bg7 {[%clk
0:01:16.5]} 11. Nf3 {[%clk 0:02:49.5]} 11... O-O {[%clk 0:01:16.2]} 12. O-O
{[%clk 0:02:49.8]} 12... e6 {[%clk 0:01:09.9]} 13. d4 {[%clk 0:02:44.9]} 13...
exd5 {[%clk 0:01:09.1]} 14. Qd3 {[%clk 0:02:40.1]} 14... Bf5 {[%clk 0:01:04.4]}
15. Qb5 {[%clk 0:02:40]} 15... Qd6 {[%clk 0:00:56.2]} 16. Qa5 {[%clk 0:02:29.3]}
16... Rxa6 {[%clk 0:00:54.3]} 17. Qc5 {[%clk 0:02:25.8]} 17... Qxc5 {[%clk
0:00:38.7]} 18. dxc5 {[%clk 0:02:26.3]} 18... c6 {[%clk 0:00:34.3]} 19. Nd4
{[%clk 0:02:20.3]} 19... Bd3 {[%clk 0:00:30.7]} 20. Rd1 {[%clk 0:02:19.8]} 20...
Be4 {[%clk 0:00:22.2]} 21. f3 {[%clk 0:02:14.3]} 21... Bf5 {[%clk 0:00:21.4]}
22. Nxf5 {[%clk 0:02:13.6]} 22... gxf5 {[%clk 0:00:22.2]} 23. Bf4 {[%clk
0:02:12]} 23... Nd7 {[%clk 0:00:21.3]} 24. a3 {[%clk 0:02:09.5]} 24... Bxc3
{[%clk 0:00:18.9]} 25. bxc3 {[%clk 0:02:07.3]} 25... Rfa8 {[%clk 0:00:18.1]} 26.
Bd6 {[%clk 0:02:04.8]} 26... Rxa3 {[%clk 0:00:18.1]} 27. Rac1 {[%clk 0:02:04.1]}
27... R8a5 {[%clk 0:00:14.7]} 28. c4 {[%clk 0:02:02.7]} 28... Nxc5 {[%clk
0:00:14.9]} 29. cxd5 {[%clk 0:02:00.8]} 29... Nd3 {[%clk 0:00:15.3]} 30. dxc6
{[%clk 0:01:58.8]} 30... Nxc1 {[%clk 0:00:14.4]} 31. c7 {[%clk 0:01:58.9]} 31...
Rc3 {[%clk 0:00:12.8]} 32. Be5 {[%clk 0:01:59.1]} 32... Rc2 {[%clk 0:00:12]} 33.
Rd8# {[%clk 0:01:58.7]} 1-0

[Event "*** SCC Grand Prix: Titled Tuesday Blitz"]
[Site "Chess.com"]
[Date "2020.09.08"]
[Round "7"]
[White "francyIM"]
[Black "2nd_life"]
[Result "1-0"]
[WhiteElo "2712"]
[BlackElo "2537"]
[TimeControl "180+1"]
[EndTime "11:17:12 PDT"]
[Termination "francyIM won by resignation"]

1. d4 {[%clk 0:03:00.9]} 1... Nf6 {[%clk 0:02:59.6]} 2. c4 {[%clk 0:02:58.4]}
2... e6 {[%clk 0:02:59.2]} 3. Nc3 {[%clk 0:02:57.2]} 3... Bb4 {[%clk 0:02:58.6]}
4. g3 {[%clk 0:02:55.8]} 4... d5 {[%clk 0:02:49.9]} 5. Bg2 {[%clk 0:02:54.6]}
5... O-O {[%clk 0:02:46.5]} 6. Nf3 {[%clk 0:02:53.8]} 6... b6 {[%clk 0:02:29.6]}
7. O-O {[%clk 0:02:50.8]} 7... Bb7 {[%clk 0:02:26.9]} 8. cxd5 {[%clk 0:02:49.7]}
8... exd5 {[%clk 0:02:21.6]} 9. Ne5 {[%clk 0:02:49]} 9... c5 {[%clk 0:02:03.3]}
10. a3 {[%clk 0:02:42]} 10... cxd4 {[%clk 0:02:00.1]} 11. Qxd4 {[%clk
0:02:36.5]} 11... Bc5 {[%clk 0:01:48.4]} 12. Qd1 {[%clk 0:02:36]} 12... Nbd7
{[%clk 0:01:44.9]} 13. Nd3 {[%clk 0:02:36.2]} 13... Bd6 {[%clk 0:01:26.5]} 14.
Nf4 {[%clk 0:02:34.3]} 14... Bxf4 {[%clk 0:01:15.8]} 15. Bxf4 {[%clk 0:02:35.2]}
15... Nc5 {[%clk 0:01:16.1]} 16. Be5 {[%clk 0:02:32.7]} 16... Nfe4 {[%clk
0:01:13.1]} 17. Rc1 {[%clk 0:02:14.8]} 17... Re8 {[%clk 0:01:05.9]} 18. Bd4
{[%clk 0:02:09.7]} 18... Ne6 {[%clk 0:00:57.9]} 19. Nxe4 {[%clk 0:01:36.6]}
19... dxe4 {[%clk 0:00:52.2]} 20. Be3 {[%clk 0:01:34.3]} 20... Qf6 {[%clk
0:00:45.7]} 21. Qb3 {[%clk 0:01:20.3]} 21... Qe5 {[%clk 0:00:34.7]} 22. Rc3
{[%clk 0:01:09.4]} 22... Rac8 {[%clk 0:00:24.5]} 23. Qa4 {[%clk 0:01:08]} 23...
Rxc3 {[%clk 0:00:19.1]} 24. Qxe8+ {[%clk 0:01:05.4]} 1-0

[Event "*** SCC Grand Prix: Titled Tuesday Blitz"]
[Site "Chess.com"]
[Date "2020.09.08"]
[Round "7"]
[White "Alindsay211"]
[Black "Sacbutt"]
[Result "0-1"]
[WhiteElo "2292"]
[BlackElo "2223"]
[TimeControl "180+1"]
[EndTime "11:17:13 PDT"]
[Termination "Sacbutt won by resignation"]

1. d4 {[%clk 0:03:00.9]} 1... e5 {[%clk 0:02:59.3]} 2. e4 {[%clk 0:02:58.3]}
2... exd4 {[%clk 0:02:56]} 3. Nf3 {[%clk 0:02:57.9]} 3... d5 {[%clk 0:02:51]} 4.
exd5 {[%clk 0:02:55.4]} 4... Qxd5 {[%clk 0:02:48.3]} 5. Qxd4 {[%clk 0:02:54.4]}
5... Qxd4 {[%clk 0:02:46.7]} 6. Nxd4 {[%clk 0:02:55.3]} 6... c6 {[%clk
0:02:43.9]} 7. Bd3 {[%clk 0:02:47.2]} 7... Bc5 {[%clk 0:02:39.7]} 8. Nb3 {[%clk
0:02:44.1]} 8... Bb4+ {[%clk 0:02:36]} 9. Bd2 {[%clk 0:02:41.9]} 9... Bxd2+
{[%clk 0:02:35.3]} 10. Kxd2 {[%clk 0:02:42]} 10... Nf6 {[%clk 0:02:35.8]} 11.
Re1+ {[%clk 0:02:41.2]} 11... Be6 {[%clk 0:02:35.8]} 12. Nc5 {[%clk 0:02:37]}
12... O-O {[%clk 0:02:27.1]} 13. Nxe6 {[%clk 0:02:32.9]} 13... fxe6 {[%clk
0:02:26.8]} 14. Rxe6 {[%clk 0:02:29.9]} 14... Nbd7 {[%clk 0:02:27.1]} 15. Re1
{[%clk 0:02:28.2]} 15... Nc5 {[%clk 0:02:25.7]} 16. b4 {[%clk 0:02:21.4]} 16...
Nxd3 {[%clk 0:02:23.8]} 17. cxd3 {[%clk 0:02:05.2]} 17... Nd5 {[%clk 0:02:23.6]}
18. a3 {[%clk 0:02:03.2]} 18... Rxf2+ {[%clk 0:02:21.5]} 19. Re2 {[%clk
0:02:02.5]} 19... Raf8 {[%clk 0:02:00.3]} 20. g3 {[%clk 0:01:46.2]} 20... h5
{[%clk 0:01:41.4]} 21. Ke1 {[%clk 0:01:40.2]} 21... Rf1+ {[%clk 0:01:35.7]} 22.
Kd2 {[%clk 0:01:40.4]} 22... R8f2 {[%clk 0:01:32.8]} 23. a4 {[%clk 0:01:11.6]}
23... Rxe2+ {[%clk 0:01:17.3]} 24. Kxe2 {[%clk 0:00:59.5]} 24... Rh1 {[%clk
0:00:49.1]} 25. Kd2 {[%clk 0:00:57.8]} 25... Rxh2+ {[%clk 0:00:46.4]} 26. Kc1
{[%clk 0:00:54.2]} 26... Nxb4 {[%clk 0:00:46]} 27. Na3 {[%clk 0:00:50.8]} 27...
Rh1+ {[%clk 0:00:44.9]} 28. Kb2 {[%clk 0:00:50.8]} 28... Nxd3+ {[%clk 0:00:45]}
29. Ka2 {[%clk 0:00:51]} 29... Rxa1+ {[%clk 0:00:41.1]} 30. Kxa1 {[%clk
0:00:51.9]} 30... g5 {[%clk 0:00:40.6]} 0-1

[Event "*** SCC Grand Prix: Titled Tuesday Blitz"]
[Site "Chess.com"]
[Date "2020.09.08"]
[Round "7"]
[White "GigaQuparadze"]
[Black "Sven_Tica"]
[Result "1-0"]
[WhiteElo "2909"]
[BlackElo "2701"]
[TimeControl "180+1"]
[EndTime "11:17:14 PDT"]
[Termination "GigaQuparadze won by resignation"]

1. e4 {[%clk 0:03:00.9]} 1... c6 {[%clk 0:02:56.9]} 2. d4 {[%clk 0:03:00.9]}
2... d5 {[%clk 0:02:57.6]} 3. Nc3 {[%clk 0:03:01.8]} 3... dxe4 {[%clk
0:02:57.4]} 4. Nxe4 {[%clk 0:03:02.7]} 4... Nf6 {[%clk 0:02:58.2]} 5. Nxf6+
{[%clk 0:03:03.2]} 5... exf6 {[%clk 0:02:59.1]} 6. c3 {[%clk 0:03:03.9]} 6...
Bd6 {[%clk 0:02:59.4]} 7. Bd3 {[%clk 0:03:04.3]} 7... O-O {[%clk 0:02:59.9]} 8.
Qc2 {[%clk 0:03:05.2]} 8... Re8+ {[%clk 0:03:00.2]} 9. Ne2 {[%clk 0:03:06.1]}
9... h5 {[%clk 0:03:00.9]} 10. O-O {[%clk 0:03:06.5]} 10... h4 {[%clk
0:03:00.6]} 11. h3 {[%clk 0:03:06.7]} 11... Nd7 {[%clk 0:03:00.1]} 12. c4 {[%clk
0:03:07.2]} 12... Nf8 {[%clk 0:02:59.5]} 13. Be3 {[%clk 0:03:07.8]} 13... Be6
{[%clk 0:02:57.7]} 14. Rad1 {[%clk 0:03:07.9]} 14... Qd7 {[%clk 0:02:57.3]} 15.
Nf4 {[%clk 0:03:07.3]} 15... Bxf4 {[%clk 0:02:30]} 16. Bxf4 {[%clk 0:03:08.2]}
16... g5 {[%clk 0:02:30.7]} 17. Bh2 {[%clk 0:03:07.2]} 17... Kg7 {[%clk
0:02:25.6]} 18. Qc3 {[%clk 0:02:43.6]} 18... Bf5 {[%clk 0:02:21.9]} 19. d5
{[%clk 0:02:42.4]} 19... cxd5 {[%clk 0:02:15.3]} 20. Bxf5 {[%clk 0:02:42.1]}
20... Qxf5 {[%clk 0:02:16.2]} 21. Rxd5 {[%clk 0:02:42.5]} 21... Qe6 {[%clk
0:02:14]} 22. Rxg5+ {[%clk 0:02:40.9]} 22... Ng6 {[%clk 0:02:11.4]} 23. Rd5
{[%clk 0:02:40.4]} 23... Rac8 {[%clk 0:02:03.7]} 24. Qd4 {[%clk 0:02:38.5]}
24... Qe2 {[%clk 0:02:01.1]} 25. Rd6 {[%clk 0:02:35.5]} 25... Rxc4 {[%clk
0:01:56.1]} 26. Qxf6+ {[%clk 0:02:32.5]} 26... Kg8 {[%clk 0:01:56.7]} 27. Rdd1
{[%clk 0:02:27.5]} 27... Rce4 {[%clk 0:01:52.1]} 28. Bd6 {[%clk 0:02:22.9]}
28... R4e6 {[%clk 0:01:49.6]} 29. Qc3 {[%clk 0:02:22.4]} 29... Rd8 {[%clk
0:01:36.7]} 30. Qc7 {[%clk 0:02:11]} 30... Ree8 {[%clk 0:01:33.5]} 31. Rb1
{[%clk 0:01:57.8]} 31... Qa6 {[%clk 0:01:23]} 32. Bb4 {[%clk 0:01:54.8]} 32...
Qxa2 {[%clk 0:01:20.5]} 33. Bc3 {[%clk 0:01:53.6]} 33... Qd5 {[%clk 0:01:13]}
34. Rfe1 {[%clk 0:01:47.6]} 34... Qg5 {[%clk 0:01:02.6]} 35. Qxb7 {[%clk
0:01:34.5]} 35... a5 {[%clk 0:00:49.4]} 36. Qf3 {[%clk 0:01:32.3]} 36... a4
{[%clk 0:00:49.4]} 37. Bf6 {[%clk 0:01:30.1]} 37... Rxe1+ {[%clk 0:00:47.9]} 38.
Rxe1 {[%clk 0:01:31]} 38... Qa5 {[%clk 0:00:48.6]} 39. Bc3 {[%clk 0:01:31]}
39... Qa6 {[%clk 0:00:44.3]} 40. Qh5 {[%clk 0:01:28.1]} 40... a3 {[%clk
0:00:40.4]} 41. Qh6 {[%clk 0:01:27.6]} 1-0

[Event "*** SCC Grand Prix: Titled Tuesday Blitz"]
[Site "Chess.com"]
[Date "2020.09.08"]
[Round "7"]
[White "jamik13"]
[Black "evgenyermolaev"]
[Result "1-0"]
[WhiteElo "2233"]
[BlackElo "2432"]
[TimeControl "180+1"]
[EndTime "11:17:15 PDT"]
[Termination "jamik13 won by resignation"]

1. d4 {[%clk 0:03:00.9]} 1... Nf6 {[%clk 0:02:58.8]} 2. Nc3 {[%clk 0:03:00.2]}
2... c5 {[%clk 0:02:53.1]} 3. dxc5 {[%clk 0:02:49.6]} 3... Na6 {[%clk
0:02:50.4]} 4. e4 {[%clk 0:02:38.6]} 4... Nxc5 {[%clk 0:02:35.2]} 5. e5 {[%clk
0:02:37.8]} 5... Nfe4 {[%clk 0:02:35.1]} 6. Nxe4 {[%clk 0:02:34]} 6... Nxe4
{[%clk 0:02:36]} 7. Qd4 {[%clk 0:02:31.7]} 7... d5 {[%clk 0:02:29.6]} 8. f3
{[%clk 0:02:11]} 8... Qa5+ {[%clk 0:02:27.8]} 9. c3 {[%clk 0:02:09]} 9... Nc5
{[%clk 0:01:44.7]} 10. b4 {[%clk 0:02:08]} 10... Qc7 {[%clk 0:01:45.3]} 11. bxc5
{[%clk 0:02:04.2]} 11... e6 {[%clk 0:01:45.8]} 12. Bb5+ {[%clk 0:02:02.2]} 12...
Kd8 {[%clk 0:01:46.2]} 13. Bg5+ {[%clk 0:01:58.7]} 13... Be7 {[%clk 0:01:32.9]}
14. Bxe7+ {[%clk 0:01:57.9]} 14... Kxe7 {[%clk 0:01:33.8]} 15. Ne2 {[%clk
0:01:53.5]} 15... f6 {[%clk 0:01:31.1]} 16. f4 {[%clk 0:01:47.7]} 16... Qa5
{[%clk 0:01:21.7]} 17. Qb4 {[%clk 0:01:45]} 17... Qc7 {[%clk 0:01:19.1]} 18. O-O
{[%clk 0:01:33.5]} 18... Rd8 {[%clk 0:01:14.6]} 19. Nd4 {[%clk 0:01:27.8]} 19...
Kf7 {[%clk 0:01:03.9]} 20. Rae1 {[%clk 0:01:23.7]} 20... b6 {[%clk 0:00:56.8]}
21. Nc6 {[%clk 0:01:11.8]} 21... Re8 {[%clk 0:00:47.8]} 22. exf6 {[%clk
0:01:08.8]} 22... gxf6 {[%clk 0:00:48.7]} 23. Ne5+ {[%clk 0:01:05.8]} 23... fxe5
{[%clk 0:00:43.9]} 24. fxe5+ {[%clk 0:01:05.5]} 24... Ke7 {[%clk 0:00:28.2]} 25.
cxb6+ {[%clk 0:01:02.9]} 1-0

[Event "*** SCC Grand Prix: Titled Tuesday Blitz"]
[Site "Chess.com"]
[Date "2020.09.08"]
[Round "7"]
[White "Shuvalov"]
[Black "nau64"]
[Result "1/2-1/2"]
[WhiteElo "2442"]
[BlackElo "2306"]
[TimeControl "180+1"]
[EndTime "11:17:15 PDT"]
[Termination "Game drawn by repetition"]

1. Nf3 {[%clk 0:02:58.3]} 1... Nf6 {[%clk 0:02:59.5]} 2. c4 {[%clk 0:02:57.8]}
2... g6 {[%clk 0:02:59.7]} 3. Nc3 {[%clk 0:02:57]} 3... d5 {[%clk 0:03:00]} 4.
d4 {[%clk 0:02:55.7]} 4... Bg7 {[%clk 0:02:59.8]} 5. h4 {[%clk 0:02:54]} 5... h6
{[%clk 0:02:57.6]} 6. cxd5 {[%clk 0:02:49.8]} 6... Nxd5 {[%clk 0:02:57.1]} 7. e4
{[%clk 0:02:49.7]} 7... Nxc3 {[%clk 0:02:57.1]} 8. bxc3 {[%clk 0:02:50.6]} 8...
c5 {[%clk 0:02:57.7]} 9. Be3 {[%clk 0:02:48.5]} 9... Bg4 {[%clk 0:02:56.4]} 10.
Rc1 {[%clk 0:02:35.1]} 10... Qa5 {[%clk 0:02:51.1]} 11. Qd2 {[%clk 0:02:34.7]}
11... Bxf3 {[%clk 0:02:49.1]} 12. gxf3 {[%clk 0:02:35.1]} 12... cxd4 {[%clk
0:02:46.6]} 13. cxd4 {[%clk 0:02:34.6]} 13... Qxd2+ {[%clk 0:02:47.5]} 14. Kxd2
{[%clk 0:02:34.7]} 14... Nc6 {[%clk 0:02:45.1]} 15. d5 {[%clk 0:02:31.1]} 15...
Rd8 {[%clk 0:02:41.4]} 16. Bb5 {[%clk 0:02:07.9]} 16... O-O {[%clk 0:02:40.8]}
17. Bxc6 {[%clk 0:02:04.4]} 17... bxc6 {[%clk 0:02:40.5]} 18. Rxc6 {[%clk
0:02:05]} 18... e6 {[%clk 0:02:40.8]} 19. Bxa7 {[%clk 0:01:54.3]} 19... exd5
{[%clk 0:02:40]} 20. Ke2 {[%clk 0:01:52.6]} 20... dxe4 {[%clk 0:02:38.3]} 21.
fxe4 {[%clk 0:01:52.4]} 21... Rfe8 {[%clk 0:02:35.9]} 22. f3 {[%clk 0:01:50.9]}
22... Ra8 {[%clk 0:02:33.3]} 23. Rc7 {[%clk 0:01:46.2]} 23... Re6 {[%clk
0:02:09.2]} 24. Rb1 {[%clk 0:01:36.3]} 24... Be5 {[%clk 0:01:18.3]} 25. Rd7
{[%clk 0:01:23.4]} 25... Ra6 {[%clk 0:01:08.2]} 26. Rbb7 {[%clk 0:01:22.8]}
26... Rxa2+ {[%clk 0:01:08.2]} 27. Kd3 {[%clk 0:01:22.4]} 27... Ra3+ {[%clk
0:01:05]} 28. Ke2 {[%clk 0:01:21.4]} 28... Ra2+ {[%clk 0:01:04.7]} 29. Kf1
{[%clk 0:01:07]} 29... Ra1+ {[%clk 0:01:03]} 30. Kg2 {[%clk 0:01:05.2]} 30...
Ra2+ {[%clk 0:01:03]} 31. Bf2 {[%clk 0:01:01.2]} 31... Rf8 {[%clk 0:00:56.8]}
32. Kf1 {[%clk 0:00:59.4]} 32... Ra1+ {[%clk 0:00:53.7]} 33. Kg2 {[%clk
0:00:58.2]} 33... Ra2 {[%clk 0:00:53.1]} 34. Kf1 {[%clk 0:00:55.6]} 34... Ra1+
{[%clk 0:00:52.5]} 35. Kg2 {[%clk 0:00:51.6]} 35... Ra2 {[%clk 0:00:52.7]}
1/2-1/2